bitfinex/quotes_SOLUSD_20260208
["timestamp","ask_amount","ask_price","bid_price","bid_amount"]
[1770565697590,1.80198674,87.83,87.784,1.9154512]
[1770565697798,1.80198674,87.828,87.788,1.80220453]
[1770565703903,1.80198674,87.828,87.755,62.33708974]
[1770565703904,1.80198674,87.826,87.782,1.80220453]
[1770565704107,1.80198674,87.825,87.782,1.80220453]
[1770565704893,1.80198674,87.823,87.783,1.80220453]
[1770565706912,39.8533397,87.822,87.777,1.80220453]
[1770565707112,1.80198674,87.817,87.746,1.80220453]
[1770565707320,1.80198674,87.814,87.741,1.80220453]
[1770565707522,1.80198674,87.812,87.741,1.80220453]
[1770565707817,1.80198674,87.808,87.741,1.80220453]
[1770565708020,1.80198674,87.807,87.741,1.80220453]
[1770565708195,1.80198674,87.803,87.741,1.80220453]
[1770565708398,1.80198674,87.803,87.736,1e-08]
[1770565708399,1.80198674,87.797,87.736,1e-08]
[1770565708598,5.13032502,87.794,87.73,30.41897608]
[1770565708813,12.60764767,87.793,87.73,30.41897608]
[1770565709020,5.13032502,87.785,87.73,30.41897608]
[1770565709316,5.13032502,87.785,87.717,1.93325529]
[1770565709317,5.13032502,87.781,87.717,1.93325529]
[1770565709508,12.50902642,87.78,87.721,1.93325529]
[1770565709710,5.13032502,87.776,87.724,1.93325529]
[1770565710030,12.49831358,87.775,87.724,1.93325529]
[1770565710326,5.13032502,87.771,87.724,1.93325529]
[1770565710527,5.13032502,87.77,87.724,1.93325529]
[1770565710722,5.13032502,87.769,87.724,1.93325529]
[1770565710919,39.87785981,87.768,87.724,1.93325529]
[1770565711123,39.87785981,87.768,87.726,1.93325529]
[1770565711505,11.39367423,87.768,87.726,1.93325529]
[1770565711825,3.88126052,87.77,87.728,7.16306641]
[1770565712017,1.94751904,87.77,87.758,1.80220453]
[1770565712216,1.80198674,87.797,87.759,1.80220453]
[1770565712924,1.80198674,87.795,87.76,1.80220453]
[1770565714108,1.80198674,87.795,87.761,1.80220453]
[1770565714924,1.80198674,87.792,87.724,1.80220453]
[1770565715125,1.80198674,87.787,87.725,11.39921755]
[1770565715331,1.80198674,87.787,87.713,1.80220453]
[1770565716125,1.80198674,87.783,87.713,1.80220453]
[1770565716317,1.80198674,87.782,87.713,1.80220453]
[1770565716525,1.80198674,87.778,87.713,1.80220453]
[1770565716725,1.80198674,87.777,87.713,1.80220453]
[1770565716927,1.80198674,87.773,87.713,1.80220453]
[1770565717231,1.80198674,87.768,87.713,1.80220453]
[1770565717535,1.80198674,87.767,87.713,1.80220453]
[1770565718036,1.80198674,87.767,87.707,11.40158806]
[1770565718037,1.80198674,87.767,87.722,1.80220453]
[1770565720434,1.80198674,87.765,87.722,1.80220453]
[1770565720632,1.80198674,87.763,87.722,1.80220453]
[1770565720945,1.80198674,87.762,87.722,1.80220453]
[1770565721141,1.80198674,87.761,87.722,1.80220453]
[1770565721314,1.80198674,87.76,87.722,1.80220453]
[1770565721937,1.80198674,87.76,87.71,2.00220453]
[1770565722239,1.80198674,87.76,87.721,1.80220453]
[1770565725437,1.69099263,87.756,87.72,0.2]
[1770565725829,1.69099263,87.756,87.72,2.01800608]
[1770565727223,39.88376729,87.755,87.72,2.01800608]
[1770565727420,1.69099263,87.754,87.72,2.01800608]
[1770565727641,1.69099263,87.754,87.71,0.2]
[1770565727642,1.69099263,87.751,87.71,1e-08]
[1770565728236,1.69099263,87.751,87.7,1e-08]
[1770565728237,1.69099263,87.747,87.7,1e-08]
[1770565728444,1.69099263,87.746,87.7,1e-08]
[1770565728628,1.69099263,87.742,87.7,1e-08]
[1770565728931,1.69099263,87.741,87.7,1e-08]
[1770565729239,1.69099263,87.737,87.7,1e-08]
[1770565729443,1.69099263,87.732,87.7,1e-08]
[1770565729740,1.69099263,87.728,87.7,1e-08]
[1770565729934,1.69099263,87.727,87.7,1e-08]
[1770565730146,1.69099263,87.726,87.7,1e-08]
[1770565731828,1.69099263,87.724,87.7,1e-08]
[1770565732024,1.69099263,87.722,87.7,1e-08]
[1770565732230,1.69099263,87.721,87.7,1e-08]
[1770565732431,1.69099263,87.72,87.7,1e-08]
[1770565732634,1.69099263,87.719,87.7,1e-08]
[1770565732831,1.69099263,87.746,87.7,1e-08]
[1770565733048,7.2258388,87.771,87.7,1e-08]
[1770565733231,1.79604217,87.769,87.7,1e-08]
[1770565733430,1.79604217,87.766,87.7,1e-08]
[1770565733839,11.39354441,87.769,87.7,1e-08]
[1770565734341,1.79604217,87.768,87.7,1e-08]
[1770565734539,11.39354441,87.769,87.7,1e-08]
[1770565735048,7.21701053,87.77,87.7,1e-08]
[1770565735245,1.79604217,87.768,87.7,1e-08]
[1770565735652,1.79604217,87.767,87.7,1e-08]
[1770565736429,1.79604217,87.765,87.7,1e-08]
[1770565739267,13.19023568,87.764,87.7,1e-08]
[1770565739848,1.79604217,87.763,87.7,1e-08]
[1770565740938,1.79604217,87.761,87.7,1e-08]
[1770565741742,1.79604217,87.759,87.7,1e-08]
[1770565742053,1.79604217,87.757,87.7,1e-08]
[1770565742434,1.79604217,87.756,87.7,1e-08]
[1770565742932,1.44200003,87.757,87.7,1e-08]
[1770565743260,1.79604217,87.772,87.7,1e-08]
[1770565744267,11.39389022,87.767,87.7,1e-08]
[1770565744449,13.18993239,87.767,87.7,1e-08]
[1770565744661,1.79604217,87.766,87.7,1e-08]
[1770565746142,1.79604217,87.764,87.7,1e-08]
[1770565746347,1.79604217,87.761,87.7,1e-08]
[1770565746659,1.79604217,87.758,87.7,1e-08]
[1770565746853,1.79604217,87.756,87.7,1e-08]
[1770565747061,1.79604217,87.754,87.7,1e-08]
[1770565747241,1.79604217,87.752,87.7,1e-08]
[1770565747441,1.79604217,87.75,87.7,1e-08]
[1770565747668,0.72100001,87.751,87.7,1e-08]
[1770565747669,1.79604217,87.748,87.7,1e-08]
[1770565747868,1.79604217,87.746,87.7,1e-08]
[1770565748168,1.79604217,87.744,87.7,1e-08]
[1770565749343,1.79604217,87.742,87.7,1e-08]
[1770565752265,11.39718033,87.741,87.7,1e-08]
[1770565752466,1.79604217,87.74,87.7,1e-08]
[1770565752965,11.39718033,87.741,87.681,11.40497941]
[1770565752966,1.79604217,87.737,87.681,11.40497941]
[1770565753258,1.79604217,87.735,87.68,11.60504184]
[1770565753464,1.79604217,87.733,87.68,11.60504184]
[1770565753659,1.79604217,87.731,87.68,0.2]
[1770565754060,1.79604217,87.729,87.68,0.2]
[1770565754267,1.79604217,87.727,87.68,0.2]
[1770565754468,1.79604217,87.725,87.68,0.2]
[1770565754643,1.79604217,87.724,87.68,0.2]
[1770565755446,1.79604217,87.721,87.68,0.2]
[1770565756345,1.79604217,87.721,87.681,11.40497941]
[1770565756541,1.79604217,87.721,87.68,0.2]
[1770565756760,1.79604217,87.721,87.68,11.60507201]
[1770565757573,1.79604217,87.719,87.68,0.2]
[1770565758649,1.79604217,87.719,87.681,11.40497941]
[1770565760753,1.79604217,87.717,87.68,0.2]
[1770565761780,1.79604217,87.717,87.681,11.40497941]
[1770565762976,0.73699998,87.722,87.681,11.40497941]
[1770565763264,1.79604217,87.721,87.681,39.91742794]
[1770565766965,1.79604217,87.719,87.681,39.91742794]
[1770565767155,1.79604217,87.719,87.68,0.2]
[1770565767353,1.79604217,87.719,87.681,11.40497941]
[1770565768563,1.79604217,87.719,87.68,0.2]
[1770565768564,1.79604217,87.717,87.68,0.2]
[1770565768769,1.79604217,87.717,87.68,11.60506307]
[1770565769070,1.79604217,87.717,87.68,0.2]
[1770565770174,1.79604217,87.717,87.67,0.2]
[1770565770670,5.36086188,87.759,87.642,28.52510367]
[1770565770671,1.69604217,87.712,87.65,11.60899478]
[1770565770876,1.63744824,87.71,87.65,11.60899478]
[1770565771069,1.63744824,87.708,87.65,11.60899478]
[1770565771253,1.63744824,87.706,87.65,11.60899478]
[1770565771455,1.63744824,87.704,87.65,0.2]
[1770565771771,1.63744824,87.702,87.65,0.2]
[1770565771974,1.63744824,87.7,87.65,0.2]
[1770565772153,1.63744824,87.698,87.65,0.2]
[1770565772354,1.63744824,87.696,87.65,0.2]
[1770565772555,1.63744824,87.694,87.65,0.2]
[1770565772754,1.63744824,87.688,87.65,0.2]
[1770565772954,1.63744824,87.687,87.65,0.2]
[1770565773155,1.63744824,87.686,87.65,0.2]
[1770565774852,1.63744824,87.684,87.65,0.2]
[1770565776980,0.72100001,87.687,87.63,0.1]
[1770565776981,1.63744824,87.679,87.63,0.1]
[1770565777277,5.13032502,87.68,87.63,0.1]
[1770565777278,1.63744824,87.677,87.63,0.1]
[1770565777468,1.63744824,87.672,87.63,0.1]
[1770565777776,1.63744824,87.67,87.63,0.1]
[1770565777976,1.63744824,87.669,87.63,0.1]
[1770565779183,1.63744824,87.667,87.63,0.1]
[1770565780992,1.63744824,87.666,87.63,0.1]
[1770565781181,5.13032502,87.68,87.63,0.1]
[1770565781182,1.63744824,87.663,87.63,0.1]
[1770565781785,1.63744824,87.662,87.63,0.1]
[1770565781971,1.63744824,87.66,87.63,0.1]
[1770565782172,1.63744824,87.659,87.63,0.1]
[1770565783383,1.63744824,87.654,87.61,0.2]
[1770565785783,1.54972595,87.649,87.61,0.2]
[1770565785989,1.54972595,87.649,87.575,0.47477898]
[1770565787389,1.54972595,87.649,87.567,11.98932324]
[1770565787784,5.13032502,87.645,87.567,11.98932324]
[1770565787989,1.54972595,87.644,87.567,11.98932324]
[1770565788393,1.54972595,87.639,87.541,0.66447352]
[1770565788690,5.13032502,87.626,87.529,11.42472624]
[1770565788996,5.13032502,87.609,87.524,0.65955207]
[1770565789175,1.54972595,87.612,87.541,0.65955207]
[1770565789375,1.54972595,87.612,87.501,26.65832791]
[1770565789376,5.36086188,87.609,87.501,26.65832791]
[1770565789577,5.36086188,87.585,87.487,0.75955207]
[1770565789791,11.28542626,87.608,87.398,45.76750706]
[1770565789792,5.13032502,87.566,87.484,0.75468715]
[1770565789993,5.13032502,87.566,87.501,0.75468715]
[1770565790796,11.41956628,87.569,87.501,0.75468715]
[1770565790996,5.13032502,87.577,87.505,0.74987811]
[1770565791176,1.54972595,87.576,87.505,0.74987811]
[1770565791872,1.54972595,87.574,87.507,0.7454601]
[1770565792078,1.54972595,87.583,87.515,0.7454601]
[1770565792277,1.54972595,87.583,87.506,45.3581192]
[1770565792278,1.54972595,87.592,87.524,5.36086188]
[1770565792482,1.54972595,87.591,87.525,0.7454601]
[1770565794001,1.54972595,87.589,87.527,0.73718696]
[1770565794584,11.4168284,87.59,87.507,11.42764132]
[1770565794585,1.54972595,87.586,87.507,11.42764132]
[1770565794795,1.54972595,87.586,87.511,11.4270368]
[1770565795200,1.54972595,87.586,87.506,11.42778601]
[1770565795702,1.54972595,87.586,87.51,11.42716948]
[1770565795879,1.54972595,87.586,87.504,11.4279342]
[1770565796082,1.54972595,87.581,87.504,11.4279342]
[1770565796604,1.54972595,87.581,87.505,0.72888438]
[1770565797603,1.54972595,87.576,87.496,0.72077142]
[1770565797985,1.54972595,87.576,87.491,11.42973474]
[1770565798184,1.54972595,87.569,87.479,11.43128263]
[1770565798786,1.54972595,87.569,87.484,11.4306516]
[1770565799182,1.54972595,87.569,87.496,11.42904953]
[1770565799389,1.54972595,87.569,87.502,0.7167847]
[1770565800291,5.13032502,87.565,87.504,0.71284377]
[1770565800610,1.54972595,87.564,87.486,0.7089481]
[1770565800790,1.54972595,87.564,87.492,11.42951319]
[1770565801317,1.54972595,87.564,87.486,0.7089481]
[1770565801608,1.54972595,87.552,87.458,0.7089481]
[1770565801988,1.54972595,87.552,87.459,11.43388576]
[1770565802188,1.54972595,87.541,87.449,0.70509718]
[1770565802396,1.54972595,87.536,87.452,0.70509718]
[1770565804395,1.54972595,87.531,87.454,0.69752753]
[1770565804613,1.54972595,87.531,87.456,0.69752753]
[1770565805209,11.42400182,87.535,87.466,0.69380778]
[1770565805393,1.54972595,87.534,87.466,0.69380778]
[1770565805997,1.32373595,87.534,87.467,0.91612077]
[1770565806404,11.42426284,87.533,87.469,0.91612077]
[1770565806704,11.42282737,87.544,87.477,0.91248598]
[1770565808195,1.54972595,87.54,87.477,0.91248598]
[1770565808419,1.54972595,87.538,87.479,0.90889295]
[1770565809413,39.98217937,87.539,87.472,11.43221352]
[1770565809414,1.54972595,87.535,87.472,11.43221352]
[1770565809590,1.54972595,87.535,87.476,0.90183021]
[1770565809797,1.54972595,87.535,87.479,0.90183021]
[1770565810502,1.54972595,87.533,87.481,0.90183021]
[1770565811702,1.54972595,87.53,87.475,11.43178543]
[1770565811901,1.54972595,87.53,87.467,11.43280252]
[1770565812102,1.54972595,87.53,87.468,0.89522608]
[1770565812316,1.54972595,87.53,87.477,11.43146268]
[1770565812525,1.54972595,87.525,87.477,11.43146268]
[1770565813221,1.54972595,87.525,87.477,12.32359127]
[1770565813723,1.54972595,87.52,87.478,0.88906667]
[1770565813921,11.42543759,87.524,87.478,0.88906667]
[1770565814826,1.44828151,87.523,87.478,0.88906667]
[1770565816222,11.42569868,87.522,87.479,11.43131494]
[1770565816398,1.44828151,87.521,87.479,12.30848162]
[1770565816603,1.44828151,87.518,87.473,11.43206781]
[1770565817022,11.42569868,87.522,87.479,11.43131494]
[1770565817226,1.44828151,87.521,87.479,11.43131494]
[1770565817600,1.44828151,87.53,87.479,40.0096023]
[1770565818217,1.44828151,87.528,87.474,11.43196835]
[1770565818814,1.44828151,87.528,87.474,40.01188924]
[1770565819020,1.44828151,87.528,87.474,11.43196835]
[1770565819421,1.44828151,87.528,87.47,0.8685957]
[1770565819615,1.44828151,87.525,87.462,11.43346169]
[1770565819821,1.44828151,87.525,87.467,0.86580408]
[1770565820526,1.44828151,87.523,87.467,0.86580408]
[1770565821328,1.44828151,87.52,87.46,11.43368069]
[1770565821633,1.44828151,87.52,87.461,0.86304453]
[1770565821810,1.44828151,87.52,87.464,11.43322718]
[1770565822928,1.44828151,87.515,87.455,11.43435161]
[1770565823242,1.44828151,87.515,87.463,0.85762014]
[1770565825228,1.44828151,87.515,87.465,0.85231966]
[1770565825732,11.42603873,87.52,87.465,0.85231966]
[1770565825931,1.44828151,87.519,87.465,0.85231966]
[1770565826312,11.42603873,87.52,87.465,0.85231966]
[1770565827030,11.42541987,87.525,87.465,0.85231966]
[1770565827231,12.87370138,87.525,87.465,0.85231966]
[1770565827437,1.44828151,87.524,87.467,0.84714023]
[1770565827727,11.42321883,87.541,87.469,0.84459505]
[1770565827929,1.44828151,87.555,87.476,5.36086188]
[1770565828233,1.44828151,87.555,87.479,0.84459505]
[1770565829429,1.44828151,87.571,87.489,0.8420791]
[1770565830135,1.44828151,87.571,87.499,0.83959206]
[1770565831738,1.44828151,87.569,87.501,0.83470333]
[1770565834638,1.44828151,87.567,87.503,0.82992626]
[1770565836820,1.44828151,87.565,87.505,0.82296446]
[1770565839215,1.44828151,87.563,87.507,0.81845551]
[1770565839821,1.44828151,87.575,87.507,0.81845551]
[1770565841140,1.44828151,87.573,87.509,0.81404954]
[1770565844430,1.44828151,87.568,87.51,11.42726545]
[1770565844626,1.44828151,87.568,87.51,12.23280265]
[1770565844931,1.44828151,87.568,87.511,0.8055372]
[1770565846448,1.34101181,87.566,87.513,0.80142629]
[1770565847349,1.34101181,87.564,87.515,0.79940618]
[1770565850840,1.34101181,87.564,87.517,0.79155512]
[1770565851345,1.34101181,87.573,87.517,0.79155512]
[1770565852546,1.34101181,87.573,87.519,0.78964839]
[1770565852944,1.34101181,87.595,87.519,0.78964839]
[1770565854232,1.34101181,87.595,87.528,5.36086188]
[1770565854439,1.34101181,87.595,87.529,0.78590037]
[1770565854955,1.34101181,87.593,87.531,0.78405859]
[1770565855750,1.34101181,87.614,87.531,0.78405859]
[1770565856133,1.34101181,87.611,87.531,0.78405859]
[1770565856337,1.34101181,87.611,87.531,0.78223797]
[1770565857456,1.34101181,87.606,87.533,0.78043825]
[1770565859760,1.34101181,87.604,87.535,0.77516219]
[1770565860256,1.34101181,87.604,87.538,0.77516219]
[1770565860459,1.34101181,87.613,87.539,0.77516219]
[1770565861134,1.34101181,87.613,87.544,5.36086188]
[1770565861355,1.34101181,87.613,87.556,5.36086188]
[1770565861541,1.34101181,87.613,87.557,0.77344375]
[1770565861941,1.34101181,87.613,87.559,0.77174505]
[1770565862257,1.34101181,87.613,87.567,0.77174505]
[1770565862643,1.34101181,87.634,87.571,0.77006585]
[1770565862834,1.34101181,87.634,87.577,0.77006585]
[1770565864046,1.34101181,87.634,87.579,0.76840595]
[1770565864349,1.34101181,87.634,87.587,0.76840595]
[1770565864550,1.34101181,87.649,87.588,0.76840595]
[1770565864955,1.34101181,87.648,87.588,0.76840595]
[1770565865545,1.34101181,87.648,87.578,39.9643746]
[1770565865748,1.34101181,87.645,87.578,11.41839274]
[1770565866138,1.34101181,87.64,87.572,11.41917507]
[1770565866535,1.34101181,87.638,87.572,11.41917507]
[1770565866744,1.34101181,87.636,87.572,11.41917507]
[1770565866962,1.34101181,87.636,87.554,28.55375957]
[1770565866963,1.34101181,87.636,87.567,11.41982095]
[1770565867139,1.34101181,87.631,87.567,11.41982095]
[1770565867339,1.34101181,87.63,87.567,11.41982095]
[1770565867539,1.34101181,87.626,87.567,11.41982095]
[1770565867761,1.34101181,87.625,87.567,11.41982095]
[1770565867963,1.34101181,87.621,87.567,11.41982095]
[1770565868266,1.34101181,87.616,87.555,11.42139226]
[1770565869160,1.34101181,87.616,87.547,11.42237581]
[1770565869359,1.34101181,87.616,87.551,11.42179056]
[1770565869545,1.34101181,87.612,87.551,11.42179056]
[1770565869865,1.34101181,87.611,87.555,11.42139226]
[1770565870361,1.34101181,87.606,87.556,0.75883931]
[1770565871467,1.34101181,87.604,87.557,12.17843973]
[1770565872268,1.34101181,87.604,87.548,11.4222316]
[1770565872447,1.34101181,87.601,87.531,0.75579498]
[1770565872863,1.34101181,87.601,87.538,0.75429899]
[1770565873059,1.34101181,87.6,87.546,11.42252092]
[1770565873462,39.95479399,87.599,87.541,11.42313356]
[1770565873673,1.34101181,87.598,87.541,11.42313356]
[1770565873974,1.34101181,87.598,87.542,0.75282018]
[1770565875162,1.34101181,87.598,87.531,0.7484849]
[1770565875471,5.13032502,87.591,87.536,11.42383227]
[1770565875772,1.37151512,87.59,87.536,11.42383227]
[1770565875973,1.37151512,87.589,87.531,12.17296417]
[1770565877071,1.37151512,87.587,87.532,0.74567706]
[1770565877964,7.14107375,87.588,87.536,0.74429728]
[1770565879378,7.14107375,87.588,87.538,0.74293336]
[1770565879880,7.14107375,87.588,87.544,0.74158509]
[1770565880065,6.39948866,87.588,87.545,5.36086188]
[1770565880265,1.45383971,87.617,87.541,10.4911869]
[1770565880666,7.1516379,87.64,87.541,24.42482994]
[1770565880857,7.1516379,87.64,87.562,5.13032502]
[1770565881167,7.1516379,87.64,87.586,5.13032502]
[1770565881464,7.1516379,87.64,87.588,5.36086188]
[1770565881668,1.45383971,87.639,87.587,39.96026807]
[1770565881861,7.1516379,87.64,87.588,5.36086188]
[1770565882847,1.45383971,87.639,87.587,39.96026807]
[1770565883047,7.1516379,87.64,87.587,39.96026807]
[1770565883048,7.1516379,87.64,87.588,5.36086188]
[1770565883255,8.60547761,87.64,87.588,5.36086188]
[1770565883454,8.60547761,87.64,87.59,5.36086188]
[1770565884154,1.45383971,87.639,87.589,39.95935562]
[1770565884471,1.45383971,87.638,87.589,39.95935562]
[1770565884674,1.45383971,87.638,87.589,11.41695875]
[1770565884877,1.45383971,87.638,87.499,45.71458936]
[1770565885074,1.45383971,87.638,87.56,28.55176571]
[1770565885369,1.45383971,87.638,87.522,13.93364304]
[1770565885370,1.45383971,87.636,87.551,10.4911869]
[1770565887458,1.45383971,87.634,87.556,10.4911869]
[1770565889479,1.45383971,87.632,87.557,39.97395981]
[1770565889661,1.45383971,87.632,87.558,5.36086188]
[1770565890562,1.45383971,87.63,87.56,5.36086188]
[1770565892777,11.4114868,87.631,87.56,5.36086188]
[1770565892778,1.45383971,87.628,87.562,5.36086188]
[1770565894068,1.45383971,87.628,87.561,39.97213371]
[1770565894069,7.12509104,87.636,87.574,5.36086188]
[1770565894271,1.45383971,87.635,87.574,5.36086188]
[1770565894790,1.45383971,87.635,87.566,5.13032502]
[1770565895289,1.45383971,87.633,87.571,10.4911869]
[1770565899779,1.45383971,87.631,87.575,5.13032502]
[1770565899989,1.45383971,87.631,87.576,10.4911869]
[1770565902485,1.45383971,87.631,87.577,39.96483094]
[1770565902690,7.12509104,87.636,87.578,5.36086188]
[1770565902984,1.45383971,87.635,87.578,5.36086188]
[1770565904283,1.45383971,87.635,87.58,5.36086188]
[1770565906387,1.45383971,87.635,87.582,5.36086188]
[1770565908074,1.45383971,87.635,87.584,5.36086188]
[1770565908983,1.45383971,87.635,87.583,97.05079751]
[1770565908984,1.45383971,87.633,87.583,11.41774088]
[1770565910272,1.45383971,87.631,87.565,5.36086188]
[1770565912489,1.45383971,87.629,87.566,39.9698513]
[1770565912693,1.45383971,87.626,87.566,11.41995751]
[1770565912999,1.45383971,87.625,87.566,11.41995751]
[1770565913192,1.45383971,87.625,87.501,5.36086188]
[1770565913193,1.45383971,87.624,87.501,5.36086188]
[1770565913499,1.45383971,87.624,87.549,11.42207654]
[1770565913696,1.45383971,87.62,87.549,11.42207654]
[1770565913994,1.45383971,87.619,87.544,11.42274925]
[1770565914192,1.45383971,87.615,87.544,11.42274925]
[1770565914498,1.45383971,87.609,87.526,28.56270223]
[1770565914699,1.45383971,87.605,87.526,28.56270223]
[1770565914992,1.45383971,87.601,87.526,28.56270223]
[1770565915200,1.45383971,87.6,87.526,28.56270223]
[1770565915392,1.45383971,87.596,87.526,28.56270223]
[1770565915595,1.45383971,87.595,87.526,28.56270223]
[1770565915782,1.45383971,87.594,87.526,28.56270223]
[1770565916984,1.45383971,87.592,87.511,10.4911869]
[1770565917500,1.45383971,87.591,87.511,10.4911869]
[1770565918900,1.45383971,87.589,87.516,5.36086188]
[1770565919901,1.45383971,87.589,87.524,5.36086188]
[1770565920312,1.45383971,87.589,87.528,5.36086188]
[1770565920507,7.13859829,87.592,87.536,5.36086188]
[1770565920716,7.13859829,87.592,87.535,5.13032502]
[1770565920717,7.13859829,87.592,87.544,5.36086188]
[1770565921001,7.13859829,87.592,87.546,5.36086188]
[1770565921202,1.45383971,87.603,87.546,5.36086188]
[1770565921406,1.45383971,87.623,87.557,5.13032502]
[1770565921598,1.45383971,87.623,87.545,97.09292362]
[1770565921599,1.45383971,87.632,87.565,5.13032502]
[1770565921795,1.45383971,87.632,87.566,5.36086188]
[1770565922185,1.45383971,87.632,87.549,10.4911869]
[1770565922792,1.45383971,87.63,87.549,10.4911869]
[1770565922990,1.45383971,87.628,87.554,10.4911869]
[1770565923308,1.45383971,87.624,87.55,39.9771559]
[1770565923810,1.45383971,87.624,87.531,38.56583942]
[1770565923988,1.45383971,87.619,87.535,11.42399566]
[1770565924192,1.45383971,87.615,87.528,11.4248248]
[1770565924414,1.45383971,87.614,87.528,11.4248248]
[1770565924709,1.45383971,87.61,87.536,11.4237675]
[1770565924933,1.45383971,87.609,87.536,11.4237675]
[1770565925092,1.45383971,87.604,87.505,5.36086188]
[1770565925287,1.45383971,87.6,87.505,5.36086188]
[1770565925503,1.45383971,87.596,87.505,5.36086188]
[1770565925712,1.45383971,87.595,87.505,5.36086188]
[1770565925912,1.45383971,87.591,87.505,5.36086188]
[1770565926091,1.45383971,87.59,87.505,5.36086188]
[1770565926291,1.45383971,87.586,87.505,5.36086188]
[1770565926618,1.45383971,87.585,87.505,5.36086188]
[1770565926819,1.45383971,87.585,87.513,5.36086188]
[1770565927191,1.45383971,87.583,87.518,10.4911869]
[1770565928802,7.14381896,87.588,87.518,10.4911869]
[1770565929000,1.45383971,87.587,87.518,10.4911869]
[1770565929204,1.45383971,87.585,87.519,39.99131616]
[1770565929531,1.45383971,87.583,87.519,39.99131616]
[1770565929693,1.45383971,87.582,87.519,39.99131616]
[1770565929896,7.13626222,87.582,87.523,10.4911869]
[1770565930197,12.87044185,87.592,87.523,10.4911869]
[1770565930198,1.45383971,87.592,87.523,10.4911869]
[1770565931419,1.45383971,87.592,87.524,97.11621954]
[1770565931718,1.45383971,87.592,87.528,10.4911869]
[1770565932710,7.1424281,87.625,87.541,5.13032502]
[1770565932893,18.55474107,87.625,87.56,1.38002257]
[1770565933611,18.55474107,87.625,87.564,1.38002257]
[1770565933816,18.55474107,87.625,87.566,1.38002257]
[1770565934722,11.41252867,87.623,87.567,39.96939485]
[1770565935021,1.3785516,87.622,87.568,1.39591487]
[1770565936100,1.3785516,87.622,87.567,39.96939485]
[1770565937601,11.41278917,87.621,87.567,28.54956775]
[1770565937803,1.3785516,87.62,87.568,1.39591487]
[1770565938320,1.3785516,87.62,87.567,29.94548262]
[1770565938497,1.3785516,87.62,87.568,1.39591487]
[1770565939411,1.3785516,87.62,87.572,1.39591487]
[1770565939716,1.3785516,87.62,87.576,1.39591487]
[1770565940622,7.1424281,87.625,87.58,1.39591487]
[1770565940803,7.1424281,87.625,87.586,1.39591487]
[1770565942810,7.1424281,87.625,87.588,1.39591487]
[1770565943915,7.1424281,87.625,87.59,1.39591487]
[1770565944116,7.1424281,87.625,87.589,39.95935562]
[1770565944117,1.3785516,87.624,87.589,11.41695875]
[1770565944319,1.3785516,87.623,87.56,1.39591487]
[1770565945033,1.3785516,87.623,87.584,11.41753025]
[1770565946627,1.3785516,87.621,87.577,1.39591487]
[1770565949026,1.3785516,87.619,87.578,11.41839274]
[1770565949811,1.3785516,87.619,87.579,1.39591487]
[1770565951033,1.3785516,87.619,87.58,12.81404686]
[1770565951245,1.3785516,87.619,87.581,1.39591487]
[1770565952534,1.3785516,87.617,87.58,11.41813199]
[1770565952833,1.3785516,87.617,87.573,11.41896006]
[1770565953214,1.3785516,87.615,87.558,39.97350327]
[1770565953413,1.3785516,87.615,87.558,41.36941814]
[1770565953820,1.3785516,87.615,87.559,1.39591487]
[1770565955819,1.3785516,87.613,87.561,1.39591487]
[1770565958043,1.3785516,87.613,87.566,5.36086188]
[1770565958348,7.1424281,87.625,87.567,1.39591487]
[1770565958349,1.3785516,87.621,87.567,1.39591487]
[1770565960141,7.1424281,87.625,87.577,1.39591487]
[1770565960341,1.3785516,87.624,87.577,1.39591487]
[1770565961052,1.3785516,87.623,87.577,1.39591487]
[1770565962446,1.3785516,87.623,87.579,1.39591487]
[1770565963434,11.41265892,87.622,87.579,1.39591487]
[1770565963751,1.3785516,87.621,87.579,1.39591487]
[1770565965042,1.39382256,87.624,87.581,1.44798714]
[1770565966254,1.39382256,87.624,87.583,1.44798714]
[1770565966750,1.39382256,87.622,87.582,39.96254938]
[1770565967250,1.39382256,87.622,87.582,11.41787125]
[1770565968549,1.39382256,87.62,87.574,1.44798714]
[1770565970858,1.39382256,87.618,87.576,1.44798714]
[1770565972266,7.1424281,87.625,87.576,1.44798714]
[1770565972447,1.39382256,87.624,87.576,1.44798714]
[1770565972859,1.39382256,87.623,87.578,1.44798714]
[1770565974855,1.39382256,87.621,87.58,1.44798714]
[1770565975060,1.39382256,87.619,87.58,1.44798714]
[1770565976549,1.39382256,87.617,87.572,11.41910659]
[1770565977169,1.39382256,87.615,87.558,11.42100093]
[1770565977379,1.39382256,87.615,87.558,12.86898807]
[1770565977574,1.39382256,87.612,87.558,11.42100093]
[1770565978055,1.39382256,87.612,87.549,1.44798714]
[1770565978256,1.39382256,87.612,87.545,28.55656817]
[1770565979062,5.13032502,87.608,87.55,11.42197488]
[1770565979370,1.39382256,87.607,87.551,1.44798714]
[1770565981467,1.39382256,87.602,87.553,1.44798714]
[1770565981777,1.39382256,87.602,87.552,11.42178362]